fUST/lending_fUST_20240910
["ID","MTS","AMOUNT","RATE_DAILY","PERIOD"]
[337664531,1725931838875,-250.0,0.00020593,2]
[337664533,1725931838885,-250.0,0.00020648,2]
[337664535,1725931838895,-250.0,0.00020703,2]
[337664537,1725931838905,-250.0,0.00020758,2]
[337664539,1725931838915,-250.0,0.00020813,2]
[337664541,1725931838925,-251.0,0.00020822,2]
[337664543,1725931838934,-250.0,0.00020868,2]
[337664545,1725931838944,-250.0,0.00020922,2]
[337664547,1725931838954,-250.0,0.00020977,2]
[337664549,1725931838964,-10173.54274879,0.00021,2]
[337664551,1725931838974,-7357.90711,0.0002102,2]
[337664553,1725931838984,-250.0,0.00021032,2]
[337664556,1725931838994,-313.64012149,0.00021048,2]
[337664557,1725931839003,-1092.9254094,0.00021159,2]
[337664560,1725931839013,-2699.4744572,0.00021181,2]
[337664561,1725931839023,-187.23,0.00021229,3]
[337664564,1725931839033,-348.94,0.00021229,3]
[337664566,1725931839043,-174.47,0.00021229,3]
[337664568,1725931839055,-523.46,0.00021229,3]
[337664569,1725931839065,-865.92226998,0.00021238,2]
[337664570,1725931839075,-865.92226998,0.00021238,2]
[337664571,1725931839084,-865.92226998,0.00021238,2]
[337664572,1725931839094,-865.92226998,0.00021238,2]
[337664573,1725931839104,-865.92226998,0.00021238,2]
[337664574,1725931839114,-865.92226998,0.00021238,2]
[337664575,1725931839124,-865.92226998,0.00021238,2]
[337664576,1725931839134,-865.92226998,0.00021238,2]
[337664577,1725931839144,-865.92226998,0.00021238,2]
[337664578,1725931839154,-865.92226998,0.00021238,2]
[337664579,1725931839164,-865.92226998,0.00021238,2]
[337664580,1725931839173,-865.92226998,0.00021238,2]
[337664581,1725931839183,-865.92226998,0.00021238,2]
[337664582,1725931839193,-865.92226998,0.00021238,2]
[337664583,1725931839202,-865.92226998,0.00021238,2]
[337664584,1725931839212,-865.92226998,0.00021238,2]
[337664585,1725931839222,-865.92226998,0.00021238,2]
[337664586,1725931839231,-865.92226998,0.00021238,2]
[337664587,1725931839241,-865.92226998,0.00021238,2]
[337664588,1725931839451,-865.92226998,0.00021238,2]
[337664589,1725931839463,-865.92226998,0.00021238,2]
[337664590,1725931839473,-865.92226998,0.00021238,2]
[337664591,1725931839483,-865.92226998,0.00021238,2]
[337664592,1725931839492,-865.92226998,0.00021238,2]
[337664593,1725931839501,-865.92226998,0.00021238,2]
[337664594,1725931839513,-865.92226998,0.00021238,2]
[337664595,1725931839524,-865.92226998,0.00021238,2]
[337664596,1725931839536,-865.92226998,0.00021238,2]
[337664597,1725931839547,-865.92226998,0.00021238,2]
[337664598,1725931839558,-865.92226998,0.00021238,2]
[337664599,1725931839568,-865.92226998,0.00021238,2]
[337664600,1725931839578,-865.92226998,0.00021238,2]
[337664601,1725931839588,-865.92226998,0.00021238,2]
[337664602,1725931839601,-865.92226998,0.00021238,2]
[337664603,1725931839613,-865.92226998,0.00021238,2]
[337664604,1725931839623,-865.92226998,0.00021238,2]
[337664605,1725931839634,-865.92226998,0.00021238,2]
[337664606,1725931839644,-865.92226998,0.00021238,2]
[337664607,1725931839653,-865.92226998,0.00021238,2]
[337664608,1725931839663,-865.92226998,0.00021238,2]
[337664609,1725931839674,-865.92226998,0.00021238,2]
[337664610,1725931839685,-865.92226998,0.00021238,2]
[337664611,1725931839695,-865.92226998,0.00021238,2]
[337664612,1725931839705,-549.63536177,0.00021239,2]
[337664613,1725931839714,-500.0,0.00021239,2]
[337664614,1725931839724,-545.61078767,0.00021239,2]
[337664615,1725931839733,-500.0,0.00021239,2]
[337664616,1725931839743,-500.0,0.00021239,2]
[337664617,1725931839753,-500.0,0.00021239,2]
[337664618,1725931839763,-500.0,0.00021239,2]
[337664619,1725931839773,-500.0,0.00021239,2]
[337664620,1725931839783,-165585.08236,0.0002124,3]
[337664621,1725931839793,-35413.45979838,0.0002124,3]
[337664622,1725931839806,-195009.17959854,0.0002124,3]
[337664623,1725931839937,10000.0,0.0002,2]
[337664671,1725931840739,-505.9406601,0.0002124,3]
[337664673,1725931840752,-17449.04348398,0.0002124,3]
[337664675,1725931840763,-67127.56459405,0.00021249,3]
[337664884,1725931846967,-3.0,0.00021238,2]
[337665382,1725931852011,10000.0,0.0002,2]
[337665383,1725931860578,10000.0,0.0002,2]
[337665386,1725931873910,10000.0,0.0002,2]
[337665387,1725931894134,6150.2,0.0002,2]
[337665389,1725931956147,172.579135,0.0001997,2]
[337665393,1725932000820,500.21,0.00028,120]
[337665432,1725932562261,500.0,0.00017808,2]
[337665446,1725932732991,24900.0,0.00019367,2]
[337665449,1725932755076,9166.46,0.0002,2]
[337665455,1725932840448,4163.1,0.00028,120]
[337665456,1725932868622,5000.0,0.0002,2]
[337665457,1725932889500,1324.75459944,0.0002,2]
[337665499,1725932929458,3690.044,0.00026,60]
[337665505,1725932979528,160.89550314,0.00025999,60]
[337665556,1725933038841,-250.0,0.00020052,2]
[337665559,1725933038851,-250.0,0.00020107,2]
[337665561,1725933038861,-250.0,0.00020162,2]
[337665563,1725933038871,-250.0,0.00020217,2]
[337665565,1725933038881,-250.0,0.00020272,2]
[337665567,1725933038890,-250.0,0.00020327,2]
[337665569,1725933038900,-250.0,0.00020382,2]
[337665571,1725933038910,-250.0,0.00020437,2]
[337665573,1725933038921,-250.0,0.00020492,2]
[337665575,1725933038931,-7364.18531533,0.0002052,2]
[337665577,1725933038941,-300.0,0.00020546,2]
[337665579,1725933038951,-250.0,0.00020547,2]
[337665581,1725933038961,-250.0,0.00020602,2]
[337665583,1725933038970,-300.0,0.00020637,2]
[337665585,1725933038980,-250.0,0.00020657,2]
[337665587,1725933038990,-4908.77452853,0.0002069,2]
[337665589,1725933039002,-250.0,0.00020712,2]
[337665591,1725933039015,-250.0,0.00020767,2]
[337665593,1725933039028,-250.0,0.00020822,2]
[337665595,1725933039038,-251.0,0.00020822,2]
[337665598,1725933039049,-250.0,0.00020877,2]
[337665600,1725933039060,-250.0,0.00020932,2]
[337665602,1725933039069,-250.0,0.00020987,2]
[337665604,1725933039078,-1000.0,0.00021,2]
[337665606,1725933039088,-221.2954136,0.00021,2]
[337665608,1725933039097,-433.5783829,0.00021001,2]
[337665610,1725933039107,-14541.62975194,0.00021004,2]
[337665612,1725933039116,-4902.84566995,0.00021014,2]
[337665614,1725933039126,-7364.18531533,0.0002102,2]
[337665616,1725933039136,-313.64012149,0.00021038,2]
[337665618,1725933039147,-250.0,0.00021042,2]
[337665620,1725933039157,-4908.77452854,0.00021051,2]
[337665622,1725933039167,-208.3247076,0.00021096,2]
[337665624,1725933039180,-153.0,0.00021096,2]
[337665627,1725933039191,-208.3247076,0.00021096,2]
[337665629,1725933039201,-208.3247076,0.00021096,2]
[337665631,1725933039210,-153.0,0.00021096,2]
[337665633,1725933039221,-153.0,0.00021096,2]
[337665635,1725933039231,-250.0,0.00021097,2]
[337665637,1725933039241,-8144.23136295,0.00021114,2]
[337665639,1725933039251,-198.97,0.00021114,3]
[337665641,1725933039263,-8144.23136291,0.00021114,2]
[337665643,1725933039273,-8144.23136291,0.00021115,2]
[337665645,1725933039283,-8144.23136291,0.00021115,2]
[337665647,1725933039293,-8144.23136291,0.00021115,2]
[337665649,1725933039303,-500.0,0.00021124,2]
[337665651,1725933039314,-627.72189099,0.00021124,2]
[337665653,1725933039326,-214.1056049,0.00021124,2]
[337665655,1725933039337,-500.0,0.00021124,2]
[337665657,1725933039347,-237.35697149,0.00021124,2]
[337665659,1725933039357,-500.0,0.00021124,2]
[337665662,1725933039368,-578.61100058,0.00021124,2]
[337665663,1725933039378,-500.0,0.00021124,2]
[337665665,1725933039387,-500.0,0.00021124,2]
[337665666,1725933039397,-500.0,0.00021124,2]
[337665668,1725933039406,-500.0,0.00021124,2]
[337665670,1725933039415,-500.0,0.00021124,2]
[337665672,1725933039426,-500.0,0.00021124,2]
[337665674,1725933039435,-500.0,0.00021124,2]
[337665676,1725933039446,-500.0,0.00021124,2]
[337665678,1725933039457,-500.0,0.00021124,2]
[337665680,1725933039467,-500.0,0.00021124,2]
[337665682,1725933039477,-500.0,0.00021124,2]
[337665684,1725933039487,-500.0,0.00021124,2]
[337665686,1725933039497,-500.0,0.00021124,2]
[337665688,1725933039507,-500.0,0.00021124,2]
[337665690,1725933039517,-500.0,0.00021124,2]
[337665692,1725933039526,-500.0,0.00021124,2]
[337665694,1725933039535,-500.0,0.00021124,2]
[337665696,1725933039544,-500.0,0.00021124,2]
[337665698,1725933039554,-500.0,0.00021124,2]
[337665700,1725933039564,-500.0,0.00021124,2]
[337665702,1725933039573,-500.0,0.00021124,2]
[337665704,1725933039583,-500.0,0.00021124,2]
[337665706,1725933039593,-500.0,0.00021124,2]
[337665708,1725933039603,-500.0,0.00021124,2]
[337665710,1725933039613,-500.0,0.00021124,2]
[337665712,1725933039622,-500.0,0.00021124,2]
[337665714,1725933039634,-500.0,0.00021124,2]
[337665716,1725933039644,-500.0,0.00021124,2]
[337665719,1725933039655,-500.0,0.00021124,2]
[337665720,1725933039665,-481.70226301,0.00021124,2]
[337665722,1725933039674,-500.0,0.00021124,2]
[337665724,1725933039684,-183447.87054605,0.00021125,2]
[337665726,1725933039694,-1000.0,0.0002115,2]
[337665728,1725933039704,-1715.24417183,0.00021161,2]
[337665730,1725933039714,-13820.01424132,0.00021161,2]
[337665732,1725933039723,-150.112233,0.000212,2]
[337665734,1725933039735,-150.112233,0.000212,5]
[337665736,1725933039745,-150.112233,0.000212,2]
[337665738,1725933039754,-150.112233,0.000212,5]
[337665740,1725933039764,-150.112233,0.000212,5]
[337665742,1725933039774,-150.112233,0.000212,5]
[337665744,1725933039783,-150.112233,0.000212,2]
[337665746,1725933039793,-150.112233,0.000212,5]
[337665748,1725933039803,-150.112233,0.000212,5]
[337665749,1725933039812,-246.82055,0.000212,4]
[337665751,1725933039822,-500.0,0.00021213,2]
[337665753,1725933039831,-416.53338347,0.00021213,2]
[337665755,1725933039842,-500.0,0.00021213,2]
[337665757,1725933039854,-500.0,0.00021213,2]
[337665759,1725933039865,-263.15476191,0.00021213,2]
[337665761,1725933039876,-500.0,0.00021213,2]
[337665763,1725933039886,-500.0,0.00021213,2]
[337665765,1725933039896,-500.0,0.00021213,2]
[337665767,1725933039907,-407.22709255,0.00021213,2]
[337665769,1725933039918,-500.0,0.00021213,2]
[337665771,1725933039930,-500.0,0.00021213,2]
[337665773,1725933039942,-500.0,0.00021213,2]
[337665775,1725933039957,-500.0,0.00021213,2]
[337665777,1725933039968,-500.0,0.00021213,2]
[337665779,1725933039980,-500.0,0.00021213,2]
[337665781,1725933039990,-500.0,0.00021213,2]
[337665783,1725933040000,-500.0,0.00021213,2]
[337665785,1725933040011,-500.0,0.00021213,2]
[337665787,1725933040021,-345976.357941,0.00021215,3]
[337665789,1725933040033,-178860.42657,0.00021215,3]
[337665791,1725933040044,-172988.178971,0.00021216,3]
[337665793,1725933040053,-89430.213285,0.00021216,3]
[337665795,1725933040064,-206.179757,0.00021216,2]
[337665797,1725933040074,-206.179757,0.00021216,2]
[337665799,1725933040083,-206.179757,0.00021216,2]
[337665801,1725933040094,-206.179757,0.00021216,2]
[337665803,1725933040104,-206.179757,0.00021216,2]
[337665805,1725933040113,-206.179757,0.00021216,2]
[337665807,1725933040123,-151.0,0.00021216,2]
[337665809,1725933040133,-151.0,0.00021216,2]
[337665811,1725933040143,-151.0,0.00021216,2]
[337665813,1725933040153,-151.0,0.00021216,2]
[337665815,1725933040163,-151.0,0.00021216,2]
[337665817,1725933040174,-151.0,0.00021216,2]
[337665819,1725933040185,-151.0,0.00021216,2]
[337665821,1725933040195,-151.0,0.00021216,2]
[337665823,1725933040206,-151.0,0.00021216,2]
[337665826,1725933040218,-223.0767,0.00021216,2]
[337665828,1725933040228,-223.0767,0.00021216,2]
[337665830,1725933040238,-223.0767,0.00021216,2]
[337665832,1725933040249,-223.0767,0.00021216,2]
[337665833,1725933040259,-223.0767,0.00021216,2]
[337665835,1725933040269,-223.0767,0.00021216,2]
[337665837,1725933040279,-89430.213285,0.00021217,3]
[337665839,1725933040290,-206.179757,0.00021219,2]
[337665841,1725933040302,-206.179757,0.00021219,2]
[337665844,1725933040313,-151.0,0.00021219,2]
[337665846,1725933040323,-151.0,0.00021219,2]
[337665848,1725933040334,-151.0,0.00021219,2]
[337665850,1725933040345,-223.0767,0.00021219,2]
[337665852,1725933040356,-223.0767,0.00021219,2]
[337665854,1725933040366,-89430.213285,0.0002122,3]
[337665856,1725933040377,-300.136804,0.0002123,2]
[337665858,1725933040388,-272.1386,0.0002123,2]
[337665860,1725933040398,-151.0,0.0002123,2]
[337665862,1725933040408,-151.0,0.0002123,2]
[337665864,1725933040419,-151.0,0.0002123,2]
[337665866,1725933040430,-151.0,0.0002123,2]
[337665868,1725933040440,-353.81757,0.0002123,2]
[337665870,1725933040450,-353.81757,0.0002123,2]
[337665872,1725933040462,-353.81757,0.0002123,2]
[337665874,1725933040471,-353.81757,0.0002123,2]
[337665876,1725933040481,-156.890136,0.0002123,2]
[337665878,1725933040491,-151.0,0.0002123,2]
[337665880,1725933040501,-151.0,0.0002123,2]
[337665882,1725933040513,-151.0,0.0002123,2]
[337665884,1725933040523,-151.0,0.0002123,2]
[337665886,1725933040533,-151.0,0.0002123,2]
[337665890,1725933040544,-151.0,0.0002123,2]
[337665893,1725933040554,-151.0,0.0002123,2]
[337665896,1725933040563,-151.0,0.0002123,2]
[337665899,1725933040573,-500.885022,0.0002123,2]
[337665902,1725933040584,-500.885022,0.0002123,2]
[337665905,1725933040594,-500.885022,0.0002123,2]
[337665908,1725933040604,-500.885022,0.0002123,2]
[337665910,1725933040613,-151.0,0.0002123,2]
[337665914,1725933040624,-151.0,0.0002123,2]
[337665917,1725933040634,-151.0,0.0002123,2]
[337665920,1725933040645,-151.0,0.0002123,2]
[337665923,1725933040655,-1152.297148,0.0002123,2]
[337665925,1725933040666,-1152.297148,0.0002123,2]
[337665927,1725933040676,-1152.297148,0.0002123,2]
[337665929,1725933040686,-1152.297148,0.0002123,2]
[337665931,1725933040697,-272.1386,0.00021237,2]
[337665933,1725933040707,-151.335997,0.00021239,2]
[337665935,1725933040716,-151.0,0.00021239,2]
[337665937,1725933040726,-151.0,0.00021239,2]
[337665939,1725933040736,-151.0,0.00021239,2]
[337665941,1725933040746,-151.0,0.00021239,2]
[337665943,1725933040756,-151.0,0.00021239,2]
[337665945,1725933040767,-151.0,0.00021239,2]
[337665947,1725933040777,-1481.693532,0.00021239,2]
[337665949,1725933040787,-1481.693532,0.00021239,2]
[337665950,1725933040796,-151.0,0.00021239,2]
[337665952,1725933040806,-193.833771,0.00021239,2]
[337665954,1725933040816,-193.833771,0.00021239,2]
[337665957,1725933040827,-923.396334,0.00021239,2]
[337665959,1725933040838,-923.396334,0.00021239,2]
[337665960,1725933040847,-460.502879,0.00021239,2]
[337665963,1725933040857,-460.502879,0.00021239,2]
[337665964,1725933040867,-151.0,0.00021239,2]
[337665966,1725933040877,-151.0,0.00021239,2]
[337665968,1725933040888,-152.820907,0.00021241,2]
[337665971,1725933040899,-151.0,0.00021241,2]
[337665973,1725933040910,-151.0,0.00021241,2]
[337665975,1725933040921,-214.910945,0.00021241,2]
[337665995,1725933041117,-154.813428,0.00021241,2]
[337665997,1725933041130,-151.0,0.00021241,2]
[337665999,1725933041143,-151.0,0.00021241,2]
[337666001,1725933041155,-200.425204,0.00021241,2]
[337666003,1725933041166,-200.425204,0.00021241,2]
[337666005,1725933041177,-200.425204,0.00021241,2]
[337666008,1725933041188,-200.425204,0.00021241,2]
[337666010,1725933041198,-151.0,0.00021241,2]
[337666012,1725933041212,-151.0,0.00021241,2]
[337666014,1725933041222,-154.206267,0.00021241,2]
[337666016,1725933041232,-153.538083,0.00021241,2]
[337666018,1725933041242,-156.347715,0.00021241,2]
[337666020,1725933041255,-153.823599,0.00021241,2]
[337666022,1725933041266,-151.0,0.00021241,2]
[337666025,1725933041276,-151.0,0.00021241,2]
[337666027,1725933041287,-151.0,0.00021241,2]
[337666029,1725933041299,-151.0,0.00021241,2]
[337666031,1725933041309,-151.0,0.00021241,2]
[337666033,1725933041321,-151.0,0.00021241,2]
[337666035,1725933041336,-151.0,0.00021241,2]
[337666036,1725933041348,-151.0,0.00021241,2]
[337666038,1725933041360,-151.0,0.00021241,2]
[337666040,1725933041370,-151.0,0.00021241,2]
[337666042,1725933041382,-151.0,0.00021241,2]
[337666044,1725933041392,-151.0,0.00021241,2]
[337666046,1725933041402,-151.0,0.00021241,2]
[337666048,1725933041412,-228.114159,0.00021241,2]
[337666050,1725933041423,-1481.693532,0.00021241,2]
[337666052,1725933041433,-1481.693532,0.00021241,2]
[337666054,1725933041443,-1481.693532,0.00021241,2]
[337666056,1725933041454,-1481.693532,0.00021241,2]
[337666058,1725933041465,-272.1386,0.00021241,2]
[337666060,1725933041475,-151.0,0.00021241,2]
[337666062,1725933041485,-151.0,0.00021241,2]
[337666064,1725933041495,-193.833771,0.00021241,2]
[337666066,1725933041507,-193.833771,0.00021241,2]
[337666068,1725933041518,-193.833771,0.00021241,2]
[337666070,1725933041529,-193.833771,0.00021241,2]
[337666072,1725933041539,-923.396334,0.00021241,2]
[337666074,1725933041548,-923.396334,0.00021241,2]
[337666076,1725933041558,-175.910052,0.00021241,2]
[337666079,1725933041569,-460.502879,0.00021241,2]
[337666081,1725933041579,-460.502879,0.00021241,2]
[337666083,1725933041589,-460.502879,0.00021241,2]
[337666085,1725933041602,-460.502879,0.00021241,2]
[337666087,1725933041614,-151.0,0.00021241,2]
[337666089,1725933041623,-151.0,0.00021241,2]
[337666091,1725933041634,-151.0,0.00021241,2]
[337666093,1725933041644,-353.81757,0.00021241,2]
[337666095,1725933041655,-353.81757,0.00021241,2]
[337666096,1725933041665,-151.0,0.00021241,2]
[337666097,1725933041674,-151.0,0.00021241,2]
[337666098,1725933041683,-151.0,0.00021241,2]
[337666099,1725933041693,-151.0,0.00021241,2]
[337666100,1725933041702,-500.885022,0.00021241,2]
[337666101,1725933041711,-500.885022,0.00021241,2]
[337666102,1725933041721,-151.0,0.00021241,2]
[337666103,1725933041730,-151.0,0.00021241,2]
[337666104,1725933041739,-1152.297148,0.00021241,2]
[337666105,1725933041749,-1152.297148,0.00021241,2]
[337666106,1725933041759,-151.0,0.0002125,2]
[337666107,1725933041768,-151.0,0.0002125,2]
[337666108,1725933041778,-153.443005,0.0002125,2]
[337666109,1725933041788,-200.425204,0.0002125,2]
[337666110,1725933041797,-200.425204,0.0002125,2]
[337666111,1725933041807,-200.425204,0.0002125,2]
[337666112,1725933041816,-200.425204,0.0002125,2]
[337666113,1725933041826,-151.0,0.0002125,2]
[337666114,1725933041835,-151.0,0.0002125,2]
[337666115,1725933041845,-151.0,0.0002125,2]
[337666116,1725933041854,-155.125528,0.0002125,2]
[337666117,1725933041864,-2000.0,0.0002125,2]
[337666118,1725933041873,-2079.49949797,0.0002125,2]
[337666119,1725933041883,-151.0,0.0002125,2]
[337666120,1725933041893,-151.0,0.0002125,2]
[337666121,1725933041902,-151.0,0.0002125,2]
[337666122,1725933041912,-245.32993,0.0002125,2]
[337666123,1725933041922,-151.0,0.0002125,2]
[337666125,1725933041933,-151.0,0.0002125,2]
[337666126,1725933041944,-153.347427,0.0002125,2]
[337666128,1725933041956,-151.0,0.0002125,2]
[337666129,1725933041965,-151.0,0.0002125,2]
[337666131,1725933041975,-151.0,0.0002125,2]
[337666133,1725933041984,-152.273392,0.0002125,2]
[337666135,1725933041996,-1481.693532,0.0002125,2]
[337666137,1725933042007,-1481.693532,0.0002125,2]
[337666139,1725933042017,-1481.693532,0.0002125,2]
[337666141,1725933042027,-1481.693532,0.0002125,2]
[337666143,1725933042037,-272.1386,0.0002125,2]
[337666146,1725933042047,-151.0,0.0002125,2]
[337666148,1725933042057,-151.0,0.0002125,2]
[337666149,1725933042066,-193.833771,0.0002125,2]
[337666151,1725933042076,-193.833771,0.0002125,2]
[337666153,1725933042086,-193.833771,0.0002125,2]
[337666156,1725933042096,-193.833771,0.0002125,2]
[337666158,1725933042106,-923.396334,0.0002125,2]
[337666160,1725933042115,-923.396334,0.0002125,2]
[337666161,1725933042125,-923.396334,0.0002125,2]
[337666163,1725933042135,-923.396334,0.0002125,2]
[337666165,1725933042144,-460.502879,0.0002125,2]
[337666167,1725933042154,-460.502879,0.0002125,2]
[337666169,1725933042164,-460.502879,0.0002125,2]
[337666171,1725933042174,-460.502879,0.0002125,2]
[337666173,1725933042183,-151.0,0.0002125,2]
[337666175,1725933042193,-151.0,0.0002125,2]
[337666177,1725933042203,-151.0,0.0002125,2]
[337666179,1725933042212,-151.0,0.0002125,2]
[337666181,1725933042224,-151.0,0.0002125,2]
[337666183,1725933042233,-353.81757,0.0002125,2]
[337666185,1725933042242,-353.81757,0.0002125,2]
[337666187,1725933042252,-151.0,0.0002125,2]
[337666189,1725933042262,-151.0,0.0002125,2]
[337666190,1725933042272,-151.0,0.0002125,2]
[337666192,1725933042282,-151.746241,0.0002125,2]
[337666194,1725933042292,-500.885022,0.0002125,2]
[337666196,1725933042301,-500.885022,0.0002125,2]
[337666198,1725933042311,-151.0,0.0002125,2]
[337666200,1725933042320,-151.0,0.0002125,2]
[337666202,1725933042330,-1152.297148,0.0002125,2]
[337666204,1725933042340,-1152.297148,0.0002125,2]
[337666206,1725933042350,-151.0,0.00021261,2]
[337666208,1725933042360,-200.425204,0.00021261,2]
[337666210,1725933042369,-200.425204,0.00021261,2]
[337666212,1725933042379,-151.0,0.00021261,2]
[337666214,1725933042390,-151.0,0.00021261,2]
[337666216,1725933042399,-151.0,0.00021261,2]
[337666218,1725933042409,-151.0,0.00021261,2]
[337666220,1725933042419,-1481.693532,0.00021261,2]
[337666222,1725933042429,-1481.693532,0.00021261,2]
[337666224,1725933042438,-272.1386,0.00021261,2]
[337666226,1725933042448,-151.0,0.00021261,2]
[337666228,1725933042458,-193.833771,0.00021261,2]
[337666230,1725933042468,-193.833771,0.00021261,2]
[337666232,1725933042478,-923.396334,0.00021261,2]
[337666234,1725933042487,-923.396334,0.00021261,2]
[337666236,1725933042497,-460.502879,0.00021261,2]
[337666238,1725933042508,-460.502879,0.00021261,2]
[337666240,1725933042518,-151.0,0.00021261,2]
[337666242,1725933042527,-151.0,0.00021261,2]
[337666244,1725933042537,-163.213645,0.00021261,2]
[337666246,1725933042546,-353.81757,0.00021261,2]
[337666248,1725933042556,-353.81757,0.00021261,2]
[337666250,1725933042565,-162.044293,0.00021261,2]
[337666252,1725933042575,-151.0,0.00021261,2]
[337666254,1725933042584,-151.0,0.00021261,2]
[337666256,1725933042594,-206.179757,0.00021261,2]
[337666258,1725933042603,-206.179757,0.00021261,2]
[337666260,1725933042613,-151.0,0.00021261,2]
[337666262,1725933042622,-151.0,0.00021261,2]
[337666264,1725933042632,-151.0,0.00021261,2]
[337666266,1725933042642,-223.0767,0.00021261,2]
[337666268,1725933042653,-223.0767,0.00021261,2]
[337666270,1725933042662,-529.63456092,0.00021273,2]
[337666272,1725933042672,-502.68634431,0.00021273,2]
[337666274,1725933042682,-158.57420057,0.00021273,2]
[337666276,1725933042691,-304.61410126,0.00021273,2]
[337666278,1725933042701,-500.2120478,0.00021273,2]
[337666280,1725933042711,-500.0,0.00021273,2]
[337666282,1725933042722,-434.86258447,0.00021275,2]
[337666284,1725933042731,-502.0,0.0002129,2]
[337666286,1725933042742,-150.112233,0.000213,3]
[337666288,1725933042752,-150.112233,0.000213,2]
[337666290,1725933042762,-1000.0,0.00021344,2]
[337666292,1725933042772,-150.112233,0.000214,5]
[337666294,1725933042782,-150.112233,0.000214,5]
[337666296,1725933042792,-150.112233,0.000214,2]
[337666298,1725933042802,-150.112233,0.000214,4]
[337666300,1725933042812,-150.112233,0.000214,3]
[337666302,1725933042822,-150.112233,0.000214,5]
[337666304,1725933042832,-150.112233,0.000214,2]
[337666306,1725933042841,-1000.0,0.00021426,2]
[337666308,1725933042851,-4000.0,0.00021489,2]
[337666310,1725933042861,-1000.0,0.00021498,2]
[337666312,1725933042871,-74406.75230608,0.000215,20]
[337666314,1725933042880,-150.112233,0.000215,4]
[337666316,1725933042890,-151.0,0.000215,2]
[337666318,1725933042900,-165.331149,0.000215,2]
[337666320,1725933042909,-150.112233,0.000215,3]
[337666322,1725933042919,-150.112233,0.000215,2]
[337666324,1725933042929,-483.009698,0.000215,2]
[337666326,1725933042938,-483.009698,0.000215,2]
[337666328,1725933042954,-151.0,0.000215,2]
[337666330,1725933042963,-151.0,0.000215,2]
[337666332,1725933042973,-200.425204,0.000215,2]
[337666334,1725933042982,-200.425204,0.000215,2]
[337666337,1725933042993,-151.0,0.000215,2]
[337666339,1725933043002,-151.0,0.000215,2]
[337666341,1725933043012,-151.0,0.000215,2]
[337666343,1725933043022,-151.0,0.000215,2]
[337666344,1725933043032,-1481.693532,0.000215,2]
[337666346,1725933043042,-1481.693532,0.000215,2]
[337666348,1725933043052,-272.1386,0.000215,2]
[337666350,1725933043061,-151.0,0.000215,2]
[337666352,1725933043072,-193.833771,0.000215,2]
[337666354,1725933043081,-193.833771,0.000215,2]
[337666356,1725933043091,-923.396334,0.000215,2]
[337666358,1725933043101,-923.396334,0.000215,2]
[337666360,1725933043110,-460.502879,0.000215,2]
[337666362,1725933043120,-460.502879,0.000215,2]
[337666364,1725933043130,-151.0,0.000215,2]
[337666366,1725933043139,-257.413296,0.000215,2]
[337666368,1725933043150,-353.81757,0.000215,2]
[337666370,1725933043160,-353.81757,0.000215,2]
[337666372,1725933043171,-151.0,0.000215,2]
[337666374,1725933043183,-162.574983,0.000215,2]